bitfinex/quotes_BTCUSD_20230831
["timestamp","ask_amount","ask_price","bid_price","bid_amount"]
[1693512827641,0.50898,26194.0,26193.0,1.149342]
[1693512827842,0.5052,26194.0,26193.0,1.149342]
[1693512828087,0.50208,26194.0,26193.0,1.149342]
[1693512828326,0.50268,26194.0,26193.0,1.149342]
[1693512828456,0.50046,26194.0,26193.0,1.149342]
[1693512828668,0.50028,26194.0,26193.0,1.149342]
[1693512828866,0.49974,26194.0,26193.0,1.149342]
[1693512829186,0.86766085,26194.0,26193.0,1.149342]
[1693512829396,0.86760085,26194.0,26193.0,1.149342]
[1693512829593,0.86724085,26194.0,26193.0,1.149342]
[1693512829799,0.86682085,26194.0,26193.0,1.149342]
[1693512829994,0.86820085,26194.0,26193.0,1.149342]
[1693512830232,0.86814085,26194.0,26193.0,1.149342]
[1693512830434,0.86796085,26194.0,26193.0,1.149342]
[1693512830770,0.86628085,26194.0,26193.0,1.149342]
[1693512830890,0.86658085,26194.0,26193.0,1.149342]
[1693512831086,0.86676085,26194.0,26193.0,1.149342]
[1693512831290,0.86664085,26194.0,26193.0,1.149342]
[1693512831728,0.86670085,26194.0,26193.0,1.149342]
[1693512831917,0.86640085,26194.0,26193.0,1.149342]
[1693512832199,0.86502085,26194.0,26193.0,1.149342]
[1693512832320,0.86280085,26194.0,26193.0,1.149342]
[1693512832519,0.86106085,26194.0,26193.0,1.149342]
[1693512832722,0.86100085,26194.0,26193.0,1.149342]
[1693512832946,0.86112085,26194.0,26193.0,1.149342]
[1693512833150,0.86124085,26194.0,26193.0,1.149342]
[1693512833505,0.85272085,26194.0,26193.0,1.149342]
[1693512833614,0.85434085,26194.0,26193.0,1.149342]
[1693512833812,0.85080085,26194.0,26193.0,1.149342]
[1693512834079,0.85530085,26194.0,26193.0,1.149342]
[1693512834296,0.85590085,26194.0,26193.0,1.149342]
[1693512834438,0.85578085,26194.0,26193.0,1.149342]
[1693512834637,0.86772085,26194.0,26193.0,1.149342]
[1693512834865,0.86910085,26194.0,26193.0,1.149342]
[1693512835061,0.86922085,26194.0,26193.0,1.149342]
[1693512835307,0.86844085,26194.0,26193.0,1.149342]
[1693512835462,0.86910085,26194.0,26193.0,1.149342]
[1693512835663,0.86898085,26194.0,26193.0,1.149342]
[1693512835862,0.85518085,26194.0,26193.0,1.149342]
[1693512836283,0.84816085,26194.0,26193.0,1.149342]
[1693512836479,0.84804085,26194.0,26193.0,1.149342]
[1693512836685,0.84948085,26194.0,26193.0,1.149342]
[1693512836914,1.07680894,26194.0,26193.0,0.004]
[1693512837119,1.09786894,26194.0,26193.0,0.004]
[1693512837359,0.99600894,26194.0,26193.0,0.004]
[1693512837473,1.09306894,26194.0,26193.0,0.004]
[1693512837669,1.08790894,26194.0,26193.0,0.004]
[1693512837902,1.09312894,26194.0,26193.0,0.004]
[1693512838099,1.09318894,26194.0,26193.0,0.004]
[1693512838405,1.08700894,26194.0,26193.0,0.004]
[1693512838604,1.08688894,26194.0,26193.0,0.004]
[1693512838808,1.08640894,26194.0,26193.0,0.004]
[1693512839052,1.08616894,26194.0,26193.0,0.004]
[1693512839265,1.08498894,26194.0,26193.0,0.004]
[1693512839451,1.07808894,26194.0,26193.0,0.001]
[1693512839673,1.08756894,26194.0,26193.0,0.001]
[1693512839997,0.97488085,26194.0,26193.0,0.001]
[1693512840209,0.97476085,26194.0,26193.0,0.001]
[1693512840359,0.97494085,26194.0,26193.0,0.001]
[1693512840576,0.97512085,26194.0,26193.0,0.001]
[1693512840927,0.97518085,26194.0,26193.0,0.001]
[1693512841113,0.98628085,26194.0,26193.0,0.001]
[1693512841284,0.98232085,26194.0,26193.0,0.001]
[1693512841505,0.98238085,26194.0,26193.0,0.001]
[1693512841687,0.98274085,26194.0,26193.0,0.001]
[1693512841848,0.98064085,26194.0,26193.0,0.001]
[1693512842049,0.97932085,26194.0,26193.0,0.001]
[1693512842250,1.09322085,26194.0,26193.0,0.001]
[1693512842445,1.09250085,26194.0,26192.0,0.568683]
[1693512842716,0.57566085,26193.0,26192.0,0.568683]
[1693512842949,0.97732085,26193.0,26192.0,0.568683]
[1693512843131,1.94555894,26193.0,26189.0,1.145506]
[1693512843373,0.4016,26191.0,26189.0,1.145506]
[1693512843574,0.36768085,26190.0,26189.0,1.145506]
[1693512843778,0.44520085,26190.0,26189.0,1.145506]
[1693512843996,0.44490085,26190.0,26189.0,1.145506]
[1693512844193,0.44466085,26190.0,26189.0,1.145506]
[1693512844471,0.45174085,26190.0,26189.0,1.147506]
[1693512844689,0.44892085,26190.0,26189.0,1.147506]
[1693512844840,0.44892085,26190.0,26189.0,1.162506]
[1693512845044,0.44980085,26190.0,26189.0,1.162506]
[1693512845303,0.45010085,26190.0,26189.0,1.162506]
[1693512845475,0.45364085,26190.0,26189.0,1.160506]
[1693512845801,0.45244085,26190.0,26189.0,1.160506]
[1693512845942,0.45588085,26190.0,26189.0,1.179506]
[1693512846143,0.98950085,26190.0,26189.0,0.034]
[1693512846348,0.98914085,26190.0,26189.0,0.034]
[1693512846622,0.98926085,26190.0,26189.0,0.034]
[1693512846833,0.98932085,26190.0,26189.0,0.034]
[1693512847189,0.98618085,26190.0,26189.0,0.015]
[1693512847388,0.98536085,26190.0,26188.0,1.145554]
[1693512847587,1.04206085,26190.0,26189.0,0.005]
[1693512847839,1.04206085,26190.0,26189.0,0.003]
[1693512847840,0.91888085,26190.0,26189.0,0.003]
[1693512848047,1.01338085,26190.0,26189.0,0.003]
[1693512848246,1.03756085,26190.0,26189.0,0.005]
[1693512848355,1.03582085,26190.0,26189.0,0.005]
[1693512848554,1.16805254,26190.0,26189.0,0.002]
[1693512848776,3.26050354,26190.0,26189.0,0.002]
[1693512848977,3.29226354,26190.0,26189.0,0.004]
[1693512849199,3.52754354,26190.0,26189.0,0.004]
[1693512849401,3.52238354,26190.0,26189.0,0.004]
[1693512849597,3.53774354,26190.0,26189.0,0.004]
[1693512849806,3.53774354,26190.0,26189.0,0.002]
[1693512849807,3.66968454,26190.0,26189.0,0.002]
[1693512850006,3.70932454,26190.0,26189.0,0.005]
[1693512850207,3.69408454,26190.0,26189.0,0.003]
[1693512850423,3.69528454,26190.0,26189.0,0.003]
[1693512850649,0.4016,26187.0,26183.0,0.578888]
[1693512850853,0.5182,26185.0,26183.0,0.578888]
[1693512851060,0.5182,26185.0,26183.0,0.006]
[1693512851061,0.76928085,26184.0,26183.0,0.006]
[1693512851274,0.99850085,26184.0,26183.0,0.006]
[1693512851484,0.99832085,26184.0,26183.0,0.006]
[1693512851685,1.00138085,26184.0,26183.0,0.006]
[1693512851894,1.00240085,26184.0,26183.0,0.006]
[1693512852096,0.85322085,26184.0,26183.0,0.006]
[1693512852299,0.36968085,26184.0,26183.0,1.15778]
[1693512852707,0.37668085,26184.0,26183.0,1.15778]
[1693512852949,0.44994085,26184.0,26183.0,1.15778]
[1693512853163,0.46560085,26184.0,26183.0,1.15778]
[1693512853363,0.46390085,26184.0,26183.0,0.57889]
[1693512853615,0.46402085,26184.0,26183.0,0.57889]
[1693512853820,0.46574085,26184.0,26183.0,0.009]
[1693512854028,0.46832085,26184.0,26183.0,0.009]
[1693512854256,0.47234085,26184.0,26183.0,0.009]
[1693512854466,0.47138085,26184.0,26183.0,0.009]
[1693512854673,0.47210085,26184.0,26183.0,0.009]
[1693512854872,0.47264085,26184.0,26183.0,0.009]
[1693512855080,0.47648085,26184.0,26183.0,0.009]
[1693512855280,1.18691184,26184.0,26183.0,0.009]
[1693512855522,1.26989184,26184.0,26183.0,0.009]
[1693512855730,1.27097184,26184.0,26183.0,0.009]
[1693512855974,1.27523184,26184.0,26183.0,0.009]
[1693512856211,1.07844085,26184.0,26183.0,0.009]
[1693512856408,1.65082885,26184.0,26183.0,0.009]
[1693512856612,1.64086885,26184.0,26183.0,0.009]
[1693512856831,1.64140885,26184.0,26183.0,0.009]
[1693512857033,1.96641134,26184.0,26183.0,0.009]
[1693512857230,1.96653134,26184.0,26183.0,0.009]
[1693512857436,1.98075134,26184.0,26183.0,0.009]
[1693512857694,3.39980734,26184.0,26183.0,0.009]
[1693512857893,3.40184734,26184.0,26183.0,0.009]
[1693512858040,3.41228734,26184.0,26183.0,0.009]
[1693512858236,3.41224734,26184.0,26183.0,0.009]
[1693512858433,3.40552734,26184.0,26183.0,0.009]
[1693512858635,3.42116734,26184.0,26183.0,0.011]
[1693512858836,3.41936734,26184.0,26183.0,0.011]
[1693512859101,3.41696734,26184.0,26183.0,0.011]
[1693512859398,3.41900734,26184.0,26183.0,0.011]
[1693512859632,3.40636734,26184.0,26183.0,0.009]
[1693512859834,3.46120734,26184.0,26183.0,0.009]
[1693512860034,3.45088734,26184.0,26183.0,0.009]
[1693512860246,3.45076734,26184.0,26183.0,0.009]
[1693512860446,3.44272734,26184.0,26183.0,0.009]
[1693512860628,3.46784734,26184.0,26183.0,0.01]
[1693512860830,3.47120734,26184.0,26183.0,0.01]
[1693512860969,3.40668734,26184.0,26183.0,0.006]
[1693512861163,3.44076734,26184.0,26183.0,0.007]
[1693512861381,3.48448734,26184.0,26183.0,0.01]
[1693512861624,3.13956485,26184.0,26183.0,0.01]
[1693512861921,3.13668485,26184.0,26183.0,0.01]
[1693512862191,3.39992485,26184.0,26183.0,0.01]
[1693512862448,3.37772485,26184.0,26183.0,0.01]
[1693512862705,3.39988485,26184.0,26183.0,0.01]
[1693512862936,4.06803389,26184.0,26183.0,0.01]
[1693512863139,4.06491389,26184.0,26183.0,0.01]
[1693512863340,4.08171389,26184.0,26183.0,0.01]
[1693512863588,4.08171389,26184.0,26180.0,0.13685828]
[1693512863589,0.771,26181.0,26180.0,0.22814826]
[1693512863786,0.771,26179.0,26178.0,0.22814826]
[1693512864116,2.54830919,26179.0,26178.0,0.09128998]
[1693512864316,0.4016,26177.0,26175.0,0.09128998]
[1693512864519,0.76928085,26176.0,26175.0,0.09128998]
[1693512864864,0.85868085,26176.0,26175.0,0.09128998]
[1693512865073,0.85916085,26176.0,26175.0,0.22814826]
[1693512865277,0.85904085,26176.0,26175.0,0.22814826]
[1693512865480,0.85844085,26176.0,26175.0,0.22814826]
[1693512865746,0.85872085,26176.0,26175.0,0.09428998]
[1693512865952,0.46846085,26176.0,26175.0,0.13985828]
[1693512866169,0.36868085,26176.0,26175.0,1.16470998]
[1693512866383,0.36868085,26176.0,26175.0,0.66742654]
[1693512867132,0.36968085,26176.0,26175.0,0.66442654]
[1693512867346,0.36968085,26176.0,26175.0,0.66642654]
[1693512870082,0.36768085,26180.0,26179.0,1.262556]
[1693512870845,0.36868085,26180.0,26179.0,1.271556]
[1693512871249,0.36868085,26180.0,26179.0,0.581978]
[1693512871449,0.43708085,26180.0,26179.0,0.009]
[1693512871649,0.44174085,26180.0,26179.0,0.016]
[1693512871872,0.44186085,26180.0,26179.0,0.016]
[1693512872116,0.63174085,26180.0,26179.0,0.016]
[1693512872320,0.63186085,26180.0,26179.0,0.016]
[1693512872459,0.63012085,26180.0,26179.0,0.016]
[1693512872664,0.63018085,26180.0,26179.0,0.016]
[1693512872860,0.55968085,26180.0,26179.0,0.016]
[1693512873428,0.36968085,26180.0,26179.0,0.016]
[1693512873974,0.36866698,26180.0,26179.0,0.016]
[1693512874925,2.22013898,26180.0,26179.0,0.016]
[1693512875091,3.04609498,26180.0,26179.0,0.016]
[1693512875293,3.33117498,26180.0,26179.0,0.016]
[1693512875475,3.32397498,26180.0,26179.0,0.016]
[1693512875676,3.33165498,26180.0,26179.0,0.016]
[1693512875878,3.46368751,26180.0,26179.0,0.016]
[1693512876082,3.68388751,26180.0,26179.0,0.016]
[1693512876326,3.46964751,26180.0,26179.0,0.009]
[1693512876499,3.46964751,26180.0,26176.0,0.43288221]
[1693512876500,1.587644,26177.0,26176.0,0.43288221]
[1693512876674,2.07192485,26177.0,26176.0,0.43288221]
[1693512876879,3.85048257,26177.0,26176.0,0.23285963]
[1693512877089,4.41289023,26177.0,26176.0,0.09178348]
[1693512877298,4.30871023,26177.0,26176.0,0.09178348]
[1693512877511,4.31249023,26177.0,26176.0,0.09178348]
[1693512877715,4.31303023,26177.0,26176.0,0.09178348]
[1693512877921,0.771,26174.0,26173.0,0.020099]
[1693512878120,3.54762885,26174.0,26173.0,0.020099]
[1693512878339,3.90990885,26174.0,26173.0,0.020099]
[1693512878554,3.89670885,26174.0,26173.0,0.020099]
[1693512878763,3.88590885,26174.0,26173.0,0.020099]
[1693512878962,3.88866885,26174.0,26173.0,0.020099]
[1693512879226,3.88842885,26174.0,26173.0,0.020099]
[1693512879428,3.88998885,26174.0,26173.0,0.020099]
[1693512879641,3.89010885,26174.0,26173.0,0.020099]
[1693512880046,3.89034885,26174.0,26173.0,0.020099]
[1693512880351,3.92406885,26174.0,26173.0,0.022099]
[1693512880552,3.95938885,26174.0,26173.0,0.025099]
[1693512880772,3.95986885,26174.0,26173.0,0.025099]
[1693512880987,3.96106885,26174.0,26173.0,0.025099]
[1693512881177,3.96226885,26174.0,26173.0,0.025099]
[1693512881386,3.96178885,26174.0,26173.0,0.025099]
[1693512881589,3.96166885,26174.0,26173.0,0.025099]
[1693512881788,3.95902885,26174.0,26173.0,0.025099]
[1693512881989,3.95878885,26174.0,26173.0,0.025099]
[1693512882201,3.95830885,26174.0,26173.0,0.025099]
[1693512882404,3.95986885,26174.0,26173.0,0.025099]
[1693512882617,3.96826885,26174.0,26173.0,0.025099]
[1693512882815,3.96958885,26174.0,26173.0,0.025099]
[1693512883023,3.96778885,26174.0,26173.0,0.025099]
[1693512883232,3.96802885,26174.0,26173.0,0.025099]
[1693512883437,3.96622885,26174.0,26173.0,0.025099]
[1693512883637,3.96838885,26174.0,26173.0,0.025099]
[1693512883843,3.96814885,26174.0,26173.0,0.025099]
[1693512884169,3.96634885,26174.0,26173.0,0.025099]
[1693512884368,3.96646885,26174.0,26173.0,0.025099]
[1693512884623,3.96850885,26174.0,26173.0,0.025099]
[1693512884837,3.95962885,26174.0,26173.0,0.025099]
[1693512885010,3.95806885,26174.0,26173.0,0.025099]
[1693512885240,3.95854885,26174.0,26173.0,0.025099]
[1693512885446,3.95830885,26174.0,26173.0,0.025099]
[1693512885626,3.95914885,26174.0,26173.0,0.025099]
[1693512885760,3.95926885,26174.0,26173.0,0.025099]
[1693512886164,3.95962885,26174.0,26173.0,0.025099]
[1693512886365,3.95902885,26174.0,26173.0,0.025099]
[1693512886570,3.95890885,26174.0,26173.0,0.025099]
[1693512886976,3.95842885,26174.0,26173.0,0.025099]
[1693512887203,3.95854885,26174.0,26173.0,0.025099]
[1693512887407,3.95350885,26174.0,26173.0,0.025099]
[1693512887604,3.37742185,26174.0,26173.0,0.025099]
[1693512887805,3.36998185,26174.0,26173.0,0.025099]
[1693512888114,3.37106185,26174.0,26173.0,0.025099]
[1693512888344,3.37118185,26174.0,26173.0,0.025099]
[1693512888540,3.37550185,26174.0,26173.0,0.025099]
[1693512888740,3.37658185,26174.0,26173.0,0.025099]
[1693512888955,3.37646185,26174.0,26173.0,0.025099]
[1693512889285,3.39362185,26174.0,26173.0,0.025099]
[1693512889516,3.39062185,26174.0,26173.0,0.025099]
[1693512889690,3.39938185,26174.0,26173.0,0.025099]
[1693512889890,3.39926185,26174.0,26173.0,0.025099]
[1693512890098,3.39914185,26174.0,26173.0,0.025099]
[1693512890296,3.39902185,26174.0,26173.0,0.025099]
[1693512890495,3.40706185,26174.0,26173.0,0.025099]
[1693512890721,3.40490185,26174.0,26173.0,0.025099]
[1693512890956,3.40622185,26174.0,26173.0,0.025099]
[1693512891131,3.40178185,26174.0,26173.0,0.025099]
[1693512891338,3.40082185,26174.0,26173.0,0.025099]
[1693512891490,3.39926185,26174.0,26173.0,0.025099]
[1693512891710,3.41306185,26174.0,26173.0,0.025099]
[1693512891914,3.41390185,26174.0,26173.0,0.025099]
[1693512892113,3.41426185,26174.0,26173.0,0.025099]
[1693512892457,3.41486185,26174.0,26173.0,0.025099]
[1693512892661,3.41438185,26174.0,26173.0,0.025099]
[1693512892859,3.41678185,26174.0,26173.0,0.025099]
[1693512893009,3.41402185,26174.0,26173.0,0.025099]
[1693512893216,3.41474185,26174.0,26173.0,0.025099]
[1693512893439,3.41930185,26174.0,26173.0,0.025099]
[1693512893617,3.41894185,26174.0,26173.0,0.025099]
[1693512893819,3.41906185,26174.0,26173.0,0.025099]
[1693512894097,3.41894185,26174.0,26173.0,0.025099]
[1693512894277,3.41858185,26174.0,26173.0,0.025099]
[1693512894577,3.41834185,26174.0,26173.0,0.025099]
[1693512894877,3.41810185,26174.0,26173.0,0.025099]
[1693512895109,3.44278185,26174.0,26173.0,0.025099]
[1693512895309,3.44242185,26174.0,26173.0,0.025099]
[1693512895483,3.44230185,26174.0,26173.0,0.025099]
[1693512895707,3.44206185,26174.0,26173.0,0.025099]
[1693512895841,3.44182185,26174.0,26173.0,0.025099]
[1693512896026,3.44170185,26174.0,26173.0,0.025099]
[1693512896251,3.44158185,26174.0,26173.0,0.025099]
[1693512896470,3.44146185,26174.0,26173.0,0.025099]
[1693512896671,3.44122185,26174.0,26173.0,0.025099]
[1693512896870,3.44110185,26174.0,26173.0,0.025099]
[1693512897072,3.44326185,26174.0,26173.0,0.025099]
[1693512897342,3.44314185,26174.0,26173.0,0.025099]
[1693512897462,3.44290185,26174.0,26173.0,0.025099]
[1693512897663,3.44278185,26174.0,26173.0,0.025099]
[1693512897862,3.44266185,26174.0,26173.0,0.025099]
[1693512898064,3.44278185,26174.0,26173.0,0.025099]
[1693512898306,3.44242185,26174.0,26173.0,0.025099]
[1693512898523,3.44206185,26174.0,26173.0,0.025099]
[1693512898713,3.44182185,26174.0,26173.0,0.025099]
[1693512898908,3.44170185,26174.0,26173.0,0.025099]
[1693512899116,3.44158185,26174.0,26173.0,0.025099]
[1693512899313,3.44146185,26174.0,26173.0,0.025099]
[1693512899510,3.44122185,26174.0,26173.0,0.025099]
[1693512899714,3.44086185,26174.0,26173.0,0.025099]
[1693512899926,3.43762185,26174.0,26173.0,0.025099]
[1693512900146,3.43174185,26174.0,26173.0,0.025099]
[1693512900358,3.41254185,26174.0,26173.0,0.025099]
[1693512900565,3.41098185,26174.0,26173.0,0.025099]
[1693512900686,3.41158185,26174.0,26173.0,0.025099]
[1693512900885,0.44068085,26174.0,26173.0,0.17217134]
[1693512901235,0.44068085,26174.0,26173.0,1.744426]
[1693512901630,0.40368085,26174.0,26173.0,1.741426]
[1693512902039,0.44068085,26174.0,26173.0,1.744426]
[1693512902483,0.40368085,26174.0,26173.0,1.741426]
[1693512902691,0.36768085,26174.0,26173.0,1.739426]
[1693512902865,0.44068085,26174.0,26173.0,1.745426]
[1693512905287,0.98935319,26174.0,26173.0,0.026099]
[1693512905487,2.30059893,26174.0,26173.0,0.026099]
[1693512905709,2.23549485,26174.0,26173.0,0.026099]
[1693512905915,2.21263485,26174.0,26173.0,0.026099]
[1693512906175,2.43805485,26174.0,26173.0,0.026099]
[1693512906364,2.43313485,26174.0,26173.0,0.026099]
[1693512906540,1.54836785,26174.0,26173.0,0.026099]
[1693512906866,0.96160085,26174.0,26173.0,0.026099]
[1693512907093,1.21953133,26174.0,26173.0,0.026099]
[1693512907273,1.22607133,26174.0,26173.0,0.026099]
[1693512907494,0.97834085,26174.0,26173.0,0.026099]
[1693512907695,0.98644085,26174.0,26173.0,0.026099]
[1693512907897,0.98272085,26174.0,26173.0,0.026099]
[1693512908107,0.97474085,26174.0,26173.0,0.026099]
[1693512908314,0.52666085,26174.0,26173.0,0.026099]
[1693512908505,0.52666085,26174.0,26173.0,0.599208]
[1693512908506,0.90792085,26174.0,26173.0,0.599208]
[1693512908787,0.44068085,26174.0,26173.0,0.599208]
[1693512909194,0.50536085,26174.0,26173.0,0.599208]
[1693512909391,0.44068085,26174.0,26173.0,0.599208]
[1693512909600,0.90847694,26174.0,26173.0,0.026099]
[1693512909799,0.91464085,26174.0,26173.0,0.026099]
[1693512910045,0.91650085,26174.0,26173.0,0.026099]
[1693512910264,0.93054085,26174.0,26173.0,0.026099]
[1693512910479,0.93216085,26174.0,26173.0,0.026099]
[1693512910681,0.93258085,26174.0,26173.0,0.026099]
[1693512911084,0.93330085,26174.0,26173.0,0.026099]
[1693512911285,0.93744085,26174.0,26173.0,0.026099]
[1693512911503,0.93828085,26174.0,26173.0,0.026099]
[1693512911825,0.93840085,26174.0,26173.0,0.026099]
[1693512912285,0.93570085,26174.0,26173.0,0.026099]
[1693512912492,0.93660085,26174.0,26173.0,0.026099]
[1693512912831,0.93678085,26174.0,26173.0,0.026099]
[1693512913217,0.93786085,26174.0,26173.0,0.026099]
[1693512913408,0.93660085,26174.0,26173.0,0.026099]
[1693512913636,0.93606085,26174.0,26173.0,0.026099]
[1693512913817,0.93438085,26174.0,26173.0,0.026099]
[1693512914023,0.94356085,26174.0,26173.0,0.026099]
[1693512914194,1.18255114,26174.0,26173.0,0.026099]
[1693512914357,1.17721114,26174.0,26173.0,0.026099]
[1693512914558,1.17829114,26174.0,26173.0,0.026099]
[1693512914774,1.17787114,26174.0,26173.0,0.026099]
[1693512914982,1.17697114,26174.0,26173.0,0.026099]
[1693512915206,0.93642085,26174.0,26173.0,0.026099]
[1693512915430,0.93210085,26174.0,26173.0,0.026099]
[1693512915592,0.93222085,26174.0,26173.0,0.026099]
[1693512915796,0.93228085,26174.0,26173.0,0.026099]
[1693512916039,0.93240085,26174.0,26173.0,0.026099]
[1693512916274,0.93558085,26174.0,26173.0,0.026099]
[1693512916479,0.93492085,26174.0,26173.0,0.026099]
[1693512916684,0.93372085,26174.0,26173.0,0.026099]
[1693512916890,0.93582085,26174.0,26173.0,0.026099]
[1693512917239,0.93696085,26174.0,26173.0,0.026099]
[1693512917423,0.93714085,26174.0,26173.0,0.026099]
[1693512917653,0.93696085,26174.0,26173.0,0.026099]
[1693512918049,0.93268344,26174.0,26173.0,0.026099]
[1693512918300,0.93304344,26174.0,26173.0,0.026099]
[1693512918472,0.93358344,26174.0,26173.0,0.026099]
[1693512918815,0.93340344,26174.0,26173.0,0.026099]
[1693512919020,0.93346344,26174.0,26173.0,0.026099]
[1693512919357,0.93394344,26174.0,26173.0,0.026099]
[1693512919580,0.93502344,26174.0,26173.0,0.026099]
[1693512919779,0.93514344,26174.0,26173.0,0.026099]
[1693512920023,0.93142344,26174.0,26173.0,0.026099]
[1693512920235,0.93478344,26174.0,26173.0,0.026099]
[1693512920432,0.93490344,26174.0,26173.0,0.026099]
[1693512920636,0.93502344,26174.0,26173.0,0.026099]
[1693512920833,0.93454344,26174.0,26173.0,0.026099]
[1693512921055,0.93520344,26174.0,26173.0,0.026099]
[1693512921233,0.93532344,26174.0,26173.0,0.026099]
[1693512921434,0.93598344,26174.0,26173.0,0.026099]
[1693512921683,0.93694344,26174.0,26173.0,0.026099]
[1693512921842,0.93556344,26174.0,26173.0,0.026099]
[1693512922039,0.93538344,26174.0,26173.0,0.026099]
[1693512922245,3.52708498,26174.0,26173.0,0.026099]
[1693512922546,3.56928498,26174.0,26173.0,0.026099]
[1693512922756,3.56520498,26174.0,26173.0,0.026099]
[1693512922937,3.56244498,26174.0,26173.0,0.026099]
[1693512923112,3.6310005,26174.0,26173.0,0.026099]
[1693512923314,3.39397996,26174.0,26173.0,0.026099]
[1693512923538,3.39349996,26174.0,26173.0,0.026099]
[1693512923767,3.39085996,26174.0,26173.0,0.026099]
[1693512923894,3.37957996,26174.0,26173.0,0.026099]
[1693512924109,3.37741996,26174.0,26173.0,0.026099]
[1693512924312,3.37621996,26174.0,26173.0,0.026099]
[1693512924511,3.37537996,26174.0,26173.0,0.026099]
[1693512924718,3.37849996,26174.0,26173.0,0.026099]
[1693512924953,3.37177996,26174.0,26173.0,0.026099]
[1693512925209,3.33745996,26174.0,26173.0,0.026099]
[1693512925520,3.35257996,26174.0,26173.0,0.026099]
[1693512925726,3.35461996,26174.0,26173.0,0.026099]
[1693512925948,3.35497996,26174.0,26173.0,0.026099]
[1693512926104,3.35461996,26174.0,26173.0,0.026099]
[1693512926313,3.35413996,26174.0,26173.0,0.026099]
[1693512926523,3.35377996,26174.0,26173.0,0.026099]
[1693512926848,3.35761996,26174.0,26173.0,0.026099]
[1693512927149,3.35629996,26174.0,26173.0,0.026099]
[1693512927353,3.35497996,26174.0,26173.0,0.026099]
[1693512927528,3.35629996,26174.0,26173.0,0.026099]
[1693512927734,3.35569996,26174.0,26173.0,0.026099]
[1693512927913,3.35509996,26174.0,26173.0,0.026099]
[1693512928280,3.35461996,26174.0,26173.0,0.026099]
[1693512928481,3.35473996,26174.0,26173.0,0.026099]
[1693512928636,3.35497996,26174.0,26173.0,0.026099]
[1693512928904,3.37633996,26174.0,26173.0,0.026099]
[1693512929197,3.38737996,26174.0,26173.0,0.026099]
[1693512929395,3.38269996,26174.0,26173.0,0.026099]
[1693512929596,3.37549996,26174.0,26173.0,0.026099]
[1693512929819,3.37489996,26174.0,26173.0,0.026099]
[1693512930046,3.29146444,26174.0,26173.0,0.026099]
[1693512930277,3.34901348,26174.0,26173.0,0.026099]
[1693512930481,3.34901348,26174.0,26161.0,0.09171658]
[1693512930482,0.671,26162.0,26161.0,0.09171658]
[1693512930691,0.671,26162.0,26159.0,0.0202]
[1693512930692,0.671,26160.0,26159.0,0.0202]
[1693512930897,2.46972407,26160.0,26159.0,0.0202]
[1693512931102,3.42108747,26160.0,26159.0,0.0202]
[1693512931326,3.56430747,26160.0,26159.0,0.0202]
[1693512931529,3.43127546,26160.0,26159.0,0.0202]
[1693512931707,3.43319546,26160.0,26159.0,0.0202]
[1693512931936,3.54967546,26160.0,26159.0,0.0202]
[1693512932151,3.4933851,26160.0,26159.0,0.0202]
[1693512932326,3.7615451,26160.0,26159.0,0.0202]
[1693512932574,3.7349051,26160.0,26159.0,0.0202]
[1693512932769,4.3699791,26160.0,26159.0,0.0202]
[1693512932904,4.4056191,26160.0,26159.0,0.0212]
[1693512933255,4.4075391,26160.0,26159.0,0.0212]
[1693512933471,4.4074191,26160.0,26159.0,0.0212]
[1693512933692,4.79008814,26160.0,26159.0,0.0212]
[1693512933892,4.78336814,26160.0,26159.0,0.0212]
[1693512934098,5.31012814,26160.0,26159.0,0.0212]
[1693512934298,4.54673414,26160.0,26159.0,0.0212]
[1693512934501,4.65573414,26160.0,26159.0,0.0212]
[1693512934654,4.69469414,26160.0,26159.0,0.0212]
[1693512934858,4.97540814,26160.0,26159.0,0.0212]
[1693512935385,5.32460814,26160.0,26159.0,0.0212]
[1693512935585,5.32104814,26160.0,26159.0,0.0212]
[1693512935760,5.32824814,26160.0,26159.0,0.0212]
[1693512935961,5.33088814,26160.0,26159.0,0.0212]
[1693512936186,5.32560814,26160.0,26159.0,0.0212]
[1693512936438,5.32200814,26160.0,26159.0,0.0212]
[1693512936634,5.32284814,26160.0,26159.0,0.0212]
[1693512936912,5.31828814,26160.0,26159.0,0.0212]
[1693512937138,5.32260814,26160.0,26159.0,0.0212]
[1693512937292,5.32296814,26160.0,26159.0,0.0212]
[1693512937493,5.26596814,26160.0,26159.0,0.0212]
[1693512937707,5.26812814,26160.0,26159.0,0.0212]
[1693512937895,5.26908814,26160.0,26159.0,0.0212]
[1693512938096,5.27640814,26160.0,26159.0,0.0212]
[1693512938304,5.47615404,26160.0,26159.0,0.0212]
[1693512938499,5.27623404,26160.0,26159.0,0.0212]
[1693512938700,5.27539404,26160.0,26159.0,0.0212]
[1693512938905,5.27455404,26160.0,26159.0,0.0212]
[1693512939112,5.27599404,26160.0,26159.0,0.0212]
[1693512939337,5.27551404,26160.0,26159.0,0.0212]
[1693512939678,5.27215404,26160.0,26159.0,0.0212]
[1693512939808,5.48443404,26160.0,26159.0,0.0212]
[1693512940009,5.48803404,26160.0,26159.0,0.0212]
[1693512940212,5.49055404,26160.0,26159.0,0.0212]
[1693512940441,5.49631404,26160.0,26159.0,0.0212]
[1693512940646,5.47813404,26160.0,26159.0,0.0212]
[1693512940791,5.48425404,26160.0,26159.0,0.0212]
[1693512941153,5.48551404,26160.0,26159.0,0.0212]
[1693512941748,5.48731404,26160.0,26159.0,0.0212]
[1693512941902,5.48695404,26160.0,26159.0,0.0212]
[1693512942379,5.48893404,26160.0,26159.0,0.0212]
[1693512942579,5.47489404,26160.0,26159.0,0.0212]
[1693512942788,2.258563,26160.0,26159.0,0.0212]
[1693512942962,2.250283,26160.0,26159.0,0.0212]
[1693512943158,1.843823,26160.0,26159.0,0.0212]
[1693512943457,1.851203,26160.0,26159.0,0.0212]
[1693512943681,1.92581388,26160.0,26159.0,0.0212]
[1693512943946,2.06633388,26160.0,26159.0,0.0212]
[1693512944140,2.46941388,26160.0,26159.0,0.0212]